Cogmind - Beta 12 @@@ ROGUE MODE // 2024.01.25 @ 08:50:38 Player: Dosh Result: Destroyed by D-53 Grenadier with Mini Grenade Launcher Performance ------------- Evolutions (0) 0 Regions Visited (2) 400 Robots Destroyed (29) 145 Value Destroyed (605) 605 Prototype IDs (1) 20 Alien Tech Used (0) 0 Bonus (0) 0 TOTAL SCORE: 1170 Bonus ------- None Cogmind --------- Core Integrity 0/250 Matter 300/300 Energy 250/250 System Corruption 0% Temperature Cool (0) Movement Treading (160) Location -10/Mines Parts ------- > --- POWER (1) -------- Ion Engine > --- PROPULSION (2) --- Light Treads Light Treads > --- UTILITY (2) ------ Large Storage Unit Experimental Sensor Array > --- WEAPON (2) ------- Medium Laser Mace > --- INVENTORY (15) --- Light Treads Wheel Small Storage Unit Mace Mace Peak State ------------ > --- POWER ------------ Ion Engine > --- PROPULSION ------- Light Treads Light Treads > --- UTILITY ---------- Large Storage Unit Experimental Sensor Array > --- WEAPON ----------- Medium Laser Mace > --- INVENTORY -------- Light Treads Wheel Small Storage Unit Mace Mace [Rating: 16] Favorites ----------- Power Ion Engine Engine Ion Engine Propulsion Light Treads Treads Light Treads Utility Large Storage Unit Device Experimental Sensor Array Storage Large Storage Unit Weapon Mace Energy Gun Medium Laser Impact Weapon Mace Build | -11 -10 -10 ------- Run | Jun Mat Min Slots Evolved . | . . . Power . | . . . Propulsion . | . . . Utility . | . . . Weapon . | . . . Parts Attached 18 | 6 8 4 Power 2 | 1 1 . Engine 2 | 1 1 . Core . | . . . Reactor . | . . . Propulsion 8 | 2 4 2 Treads 8 | 2 4 2 Leg . | . . . Wheel . | . . . Hover . | . . . Flight . | . . . Utility 3 | 1 1 1 Device 1 | . . 1 Storage 2 | 1 1 . Processor . | . . . Hackware . | . . . Protection . | . . . Artifact . | . . . Weapon 5 | 2 2 1 Energy Gun 3 | 2 . 1 Energy Cannon . | . . . Ballistic Gun . | . . . Ballistic Cannon . | . . . Launcher . | . . . Special Weapon . | . . . Impact Weapon 2 | . 2 . Slashing Weapon . | . . . Piercing Weapon . | . . . Special Melee Weapon . | . . . Unidentified Prototypes 1 | . . 1 Parts Lost 4 | . 2 2 Power 1 | . 1 . Propulsion 2 | . . 2 Utility . | . . . Weapon 1 | . 1 . Highest Loss Streak 1 | . 1 1 To Critical Strikes . | . . . Average Slot Usage (%) 85 | . 83 91 Engine 13 | . 12 14 Treads 27 | . 27 26 Device 1 | . . 8 Storage 14 | . 14 14 Energy Gun 8 | . 8 9 Impact Weapon 18 | . 19 18 Naked Turns . | . . . Heaviest Build 34 | 14 34 30 Greatest Support 40 | 40 40 40 Greatest Overweight (x) 1 | . . 1 Average Overweight (x) . | . . . Largest Inventory Capacity 15 | 8 15 15 Average Capacity 14 | 7 14 15 Most Carried 8 | 2 8 7 Average Carried 5 | 1 5 5 Final Capacity 15 | 8 15 15 Final Carried 7 | 2 7 5 Class Distribution -------------------- 100% | Mutant Dominant Class ---------------- Mutant | -10/Materials Mutant | -10/Mines Resources | -11 -10 -10 ----------- Run | Jun Mat Min Matter Collected 375 | 188 152 35 Remotely . | . . . Salvage Created 770 | . 696 74 Parts 38 | . 31 7 Haulers Intercepted 1 | . 1 . Recyclers Shooed 1 | . 1 . Parts Field Recycled . | . . . Retrieved Matter . | . . . Parts Self-Destructed . | . . . Prevented . | . . . Kills | -11 -10 -10 ------- Run | Jun Mat Min Combat Hostiles Destroyed 21 | . 15 6 Melee 10 | . 7 3 Guns 8 | . 5 3 AOE 1 | . 1 . Classes Destroyed 7 | . 7 . Worker 1 | . 1 . Tunneler 2 | . 1 1 Hauler 1 | . 1 . Operator 2 | . 2 . Watcher 2 | . 2 . Swarmer 9 | . 3 6 Grunt 12 | . 12 . Best Kill Streak 5 | . 5 3 Combat Bots Only 4 | . 4 3 Max Kills in Single Turn 1 | . 1 1 Gunslinging . | . . . Exploded 1 | . 1 . Melee 1 | . 1 1 Uniques/NPCs Destroyed . | . . . Combat | -11 -10 -10 -------- Run | Jun Mat Min Damage Taken 1221 | . 647 574 Core 269 | . 131 138 Absorbed by Shields . | . . . Regen/Repaired (Parts) 66 | . 66 . Core Remaining (%) 100 | 100 . . Volleys Fired 39 | . 34 5 Largest 2 | . 2 1 Hottest 90 | . 90 50 Shots Fired 62 | . 57 5 Gun 62 | . 57 5 Cannon . | . . . Launcher . | . . . Special . | . . . Kinetic . | . . . Thermal 39 | . 34 5 Explosive . | . . . Electromagnetic 23 | . 23 . Robot Hit Streak 9 | . 9 2 Robot Miss Streak 3 | . 3 1 Penetration Max . | . . . Secondary Targets . | . . . Shots Hit Robots 71 | . 59 12 Core Hits 25 | . 21 4 Critical Kills . | . . . Critical Parts Destroyed 5 | . 4 1 Critical Strikes 7 | . 4 3 Burn 2 | . . 2 Smash 5 | . 4 1 Melee Attacks 46 | . 31 15 Impact 46 | . 31 15 Slashing . | . . . Piercing . | . . . Sneak Attacks 5 | . 4 1 Combat Hostiles . | . . . Follow-up Attacks 3 | . 2 1 Damage Inflicted 1771 | . 1390 381 Guns 546 | . 505 41 Cannons . | . . . Explosions 46 | . 46 . Melee 1177 | . 837 340 Ramming 2 | . 2 . Kinetic . | . . . Thermal 359 | . 318 41 Explosive . | . . . Electromagnetic 233 | . 233 . Impact 1177 | . 837 340 Slashing . | . . . Piercing . | . . . Highest Corruption . | . . . Average Corruption . | . . . Corruption Purged . | . . . Corruption Blocked . | . . . Overload Shots . | . . . Overflow Damage 504 | . 378 126 Projectiles . | . . . Explosions . | . . . Melee 504 | . 378 126 Knockbacks 5 | . 3 2 Impact 5 | . 3 2 Kinetic . | . . . Secondary . | . . . Self-Inflicted Damage . | . . . Shots . | . . . Rammed 3 | . 3 . Targets Rammed 3 | . 3 . Kicked . | . . . Crushed . | . . . Highest Temperature 315 | . 315 50 Average Temperature 142 | . 152 26 Received Heat Transfer 264 | . 264 . Effects 1 | . 1 . Interference 1 | . 1 . Siege Activations . | . . . Robots Corrupted . | . . . Combat Hostiles . | . . . Parts Fried 13 | . 9 4 Impact Corruptions 23 | . 16 7 Robots Melted . | . . . Combat Hostiles . | . . . Parts Melted . | . . . Heat Transferred 1123 | . 864 259 Parts Sabotaged . | . . . Parts Stolen . | . . . Parts Stripped . | . . . Power Chain Reactions 1 | . 1 . Missiles Intercepted . | . . . Alert | -11 -10 -10 ------- Run | Jun Mat Min Peak Influence 280 | . 280 228 Initial 103 | . . 103 Average 117 | . 113 154 Maximum Alert Level 1 | . 1 1 Low Security (%) 70 | 100 74 51 Level 1 29 | . 25 48 Level 2 . | . . . Level 3 . | . . . Level 4 . | . . . Level 5 . | . . . High Security . | . . . Max Security . | . . . Squads Dispatched 3 | . 3 . Investigation 2 | . 2 . Extermination . | . . . Reinforcement 1 | . 1 . Assault . | . . . Garrison . | . . . Intercept . | . . . Searches Triggered . | . . . Construction Impeded . | . . . Haulers Reinforced . | . . . Active Scanning Responses . | . . . Cargo Convoy Interrupts . | . . . Stealth | -11 -10 -10 --------- Run | Jun Mat Min Distress Signals 2 | . 2 . Communications Jammed . | . . . Distress Signals . | . . . Times Spotted 47 | . 34 13 Peak Tracking Total 12 | . 5 12 Tactical Retreats 10 | . 10 . Traps | -11 -10 -10 ------- Run | Jun Mat Min Traps Triggered 1 | . 1 . Indirectly . | . . . Trap Hack Attempts . | . . . Triggered . | . . . Disarmed . | . . . Reprogrammed . | . . . Reused . | . . . Traps Extracted . | . . . Installed . | . . . Triggered . | . . . Machines | -11 -10 -10 ---------- Run | Jun Mat Min Machines Disabled . | . . . Max in Single Turn . | . . . Machines Repaired . | . . . Machines Sabotaged . | . . . Overloaded Fab Kills . | . . . Hacking | -11 -10 -10 --------- Run | Jun Mat Min Machines Accessed 8 | . 8 . Terminals 5 | . 5 . Fabricators . | . . . Repair Stations 1 | . 1 . Recycling Units 2 | . 2 . Scanalyzers . | . . . Garrison Access . | . . . Total Hacks 13 | . 13 . Successful 9 | . 9 . Failed 4 | . 4 . Catastrophic 1 | . 1 . Database Lockouts . | . . . Manual 12 | . 12 . Terminals 9 | . 9 . Fabricators . | . . . Repair Stations 2 | . 2 . Recycling Units 2 | . 2 . Scanalyzers . | . . . Garrison Access . | . . . Terminal Hacks 2 | . 2 . Robot Analysis 2 | . 2 . Fabricator Hacks . | . . . Repair Station Hacks 2 | . 2 . Scan Component 1 | . 1 . Repair 1 | . 1 . Recycling Unit Hacks . | . . . Scanalyzer . | . . . Garrison Access Hacks . | . . . Unauthorized Hacks 5 | . 5 . Terminals 3 | . 3 . Botnet 2 | . 2 . Operators 1 | . 1 . Fabricators . | . . . Repair Stations . | . . . Recycling Units 2 | . 2 . Tunnel 2 | . 2 . Scanalyzers . | . . . Garrison Access . | . . . Data Cores Recovered 1 | . 1 . Used . | . . . Hacking Detections 4 | . 4 . Full Trace Events . | . . . Feedback Events . | . . . Feedback Blocked . | . . . Robot Schematics Acquired . | . . . Robots Built . | . . . Authchips . | . . . Time . | . . . Total Robot Build Rating . | . . . Part Schematics Acquired . | . . . Parts Built . | . . . Authchips . | . . . Time . | . . . Total Part Build Rating . | . . . Parts Repaired 1 | . 1 . Time 26 | . 26 . Parts Recycled . | . . . Recycled Matter . | . . . Retrieved Matter . | . . . Retrieved Components . | . . . Parts Scanalyzed . | . . . Part Schematics Acquired . | . . . Parts Damaged . | . . . Bothacking | -11 -10 -10 ------------ Run | Jun Mat Min Used RIF Installer . | . . . Robots Hacked . | . . . Non-combat . | . . . Combat . | . . . Robot Hacks Applied . | . . . Relay Couplers Released . | . . . Fabnet Peak Effective % . | . . . Robots Rewired . | . . . Allies Hacked . | . . . Hacks Repelled . | . . . Allies | -11 -10 -10 -------- Run | Jun Mat Min Total Allies . | . . . Largest Group . | . . . Highest-Rated Group . | . . . Highest-Rated Ally . | . . . Total Orders . | . . . Ally Attacks . | . . . Total Damage . | . . . Kills . | . . . Allies Corrupted . | . . . Allies Melted . | . . . Intel | -11 -10 -10 ------- Run | Jun Mat Min Robot Analysis Total 2 | . 2 . Derelict Logs Recovered 2 | . . 2 Drone Launches . | . . . Drone Recoveries . | . . . Exploration | -11 -10 -10 ------------- Run | Jun Mat Min Turns Passed 2092 | 95 1509 488 Spaces Moved 1079 | 55 763 261 Core 3 | 3 . . Treads 1076 | 52 763 261 Legs . | . . . Wheels . | . . . Hover . | . . . Flight . | . . . Fastest Speed 50 | 50 160 160 Average Speed 161 | 154 160 165 Slowest Speed 240 | 160 160 240 Overloaded Moves . | . . . Propulsion Burnouts . | . . . Robots Hopped . | . . . Cave-ins Triggered . | . . . Exploration Rate (%) 51 | 4 95 54 Regions Visited 2 Branch Regions 1 Pre-discovered Areas 3 | . 2 1 Known Exits Taken . | . . . Unknown Exits Taken 2 | 1 1 . Scrap Searched . | . . . Spaces Dug 2 | . 2 . Terrain Destroyed 2 | . 2 . Melee 2 | . 2 . Projectile . | . . . AOE . | . . . Terrain Rammed . | . . . Walls Destroyed . | . . . Machines Disabled . | . . . Actions | -11 -10 -10 --------- Run | Jun Mat Min Total 1291 | 62 942 287 Wait 103 | . 101 2 Move 1077 | 54 762 261 Hop . | . . . Pick Up 6 | 2 3 1 Fast Attach 10 | 6 4 . Attach 4 | . 1 3 Detach 2 | . 2 . Swap 4 | . 3 1 Drop 2 | . 2 . Fire 39 | . 34 5 Melee 41 | . 27 14 Ram . | . . . Kick . | . . . Crush 3 | . 3 . Escape Stasis . | . . . Rewire . | . . . Trap . | . . . Miscellaneous . | . . . Route ------- -11/Junkyard -10/Materials (discovered 4 exits: [*Mat x3] / [*Min]) -10/Mines (discovered 1 exit: [*Mat]) History --------- Turn | Location | Event 65 | -11/Junkyard | Discovered new exit (range 16) 96 | -11/Junkyard | Entered Materials 309 | -10/Materials | Build established: Mutant 601 | -10/Materials | Discovered new exit (range 16) 704 | -10/Materials | Discovered new exit (range 16) 1249 | -10/Materials | Discovered new exit (range 9) 1365 | -10/Materials | Discovered new exit (range 11) 1476 | -10/Materials | Repaired Lgt. Treads 1502 | -10/Materials | Core integrity fell below 50% 1605 | -10/Materials | Entered Mines 1671 | -10/Mines | Discovered new exit (range 10) 1716 | -10/Mines | Core integrity fell below 20% 1796 | -10/Mines | Found a damaged Exp. Sensor Array with a note attached 1799 | -10/Mines | Found Prototype Device 1813 | -10/Mines | Identified Exp. Sensor Array 2065 | -10/Mines | Assembled infested the area 2070 | -10/Mines | Learned 4 Materials zone layouts 2093 | -10/Mines | Destroyed by D-53 Grenadier with Mini Grenade Launcher Last Messages --------------- 01870_ T-07 Excavator system corrupted by crushing effect. 01870_ T-07 Excavator knocked back. 01871_ T-07 Excavator system terminally corrupted. 01871_ Lgt. Ion Engine fried. 01871_ Wheel fried. 02065_ ALERT: Infestation in the mines, dispatching Demolisher response squad. 02066_ U-05 Engineer destroyed. 02070_ Acquired derelict log, extracted data. Data stored: Materials zone layouts (x4). 02076_ as-92121 sneak attacks. 02082_ as-44492 powers down. 02082_ as-77719 powers down. 02082_ as-55817 powers down. 02082_ as-69182 powers down. 02091_ C-30 ARC bursts open, deploying its payload. 02091_ D-53 Grenadier unfolds itself. 02091_ as-78469 destroyed. 02091_ T-07 Excavator destroyed. 02091_ U-05 Engineer lays Concrete. Map ----- +----------------------------------------------------+ | ?????????????????????????????????????????????????? | | ?????????????????????????????????????????????????? | | ??????????####???????????????????????????????????? | | ?????###### ##??????????????????????????????????? | | ?????# #??????????????????????????????????? | | ?????# !! #??????????????????????????????????? | | ?##### ! ! #??????????????????????????????????? | | # ## ! #?????######???????????????????????? | | # ! ! ##?##### ##??????????????????????? | | # #?## #??????????????????????? | | #### ### #???????????????????????? | | #???# ###???????????????????????? | | #?????# # #?????????????????????????? | | ##?????# ### #?????????????????????????? | | #??????# ##?# #?????????????????????????? | | ???????## ##??# #?????????????????????????? | | ????????### #???# #?????????????????????????? | | ??????????## ##???# #?????????????????????????? | | ##?????????#####????# #?????????????????????????? | | ##?????????????????# #?????????????????????????? | | #????????????????## ##????????????????????????? | | #???????????????## ###??????????????????????? | | #???????????????# #??????????????????????? | | ##???????????????# #??????????????????????? | | ##?????????????##### % #??????????????????????? | | #?????????????## ## @##?????????????????????? | | ??????????????# #?????????????????????? | | #######???????# % #################?????? | | #???????# !!?*#???? | | #???????# d u# ################?????? | | #### #####???# d ## ###????????????????????? | | ???# ## ##??## %#### ##??????????????????????? | | ???# ##??## ##?####???????????????????????? | | ???# ###### ##???????????????????????????? | | ???# ##??????????????????????????? | | ???## #??????????????????????????? | | ????###### #### #??????????????????????????? | | ?????????####??# #??????????????????????????? | | ??????????????## ##??????????????????????????? | | ??????????????# #???????????????????????????? | | ??????????????# ##???????????????????????????? | | ??????????????# ####????????????????????????????? | | ?????????????## ##???????????????????????????????? | | ????????????## #????????????????????????????????? | | ????????????# #????????????????????????????????? | | ????????????#####????????????????????????????????? | | ?????????????????????????????????????????????????? | | ?????????????????????????????????????????????????? | | ?????????????????????????????????????????????????? | | ?????????????????????????????????????????????????? | +----------------------------------------------------+ Best States ------------- Heat Dissipation 25 Energy Generation 10 Energy Capacity 250 Matter Stores 300 Matter Capacity 300 Sight Range 16 Robot Scan Range 20 Terrain Scan Density 10 Evasion (%) 40 Recoil Reduction 2 Item Schematics ----------------- None Robot Schematics ------------------ None Fabricated ------------ Nothing Alien Tech Used ----------------- None Achievements -------------- None Challenges ------------ None Game ------ Seed LayeredRemoteBroadsword Manual? 0 Play Time 00:10:38 Cumulative 134.4 hours Start 2024.01.25 @ 08:41:24 End 2024.01.25 @ 08:50:38 Sessions 1 Manual Loads 0 Difficulty Rogue Special Mode None Game No. 133 Rogue 133 Adventurer 0 Explorer 0 Win Type - Total 2 Types 2/0/0/0/0/0/0/0/0 Lore% 56 Gallery% 62 Achievement% 54 Wizard Run 0 Options --------- ASCII 0 Keyboard 1 Movement Numpad Keybinds 0 Fullscreen 2 Font 18/SmallcapsGlow Map View 76x50 Tactical HUD 1 Map Filters NONE Filters NONE Steam 1 RUN: d5f4a8f3-5ccc-471b-a43f-f55462088afc